[Event "*** Titled Tuesday Blitz"]
[Site "Chess.com"]
[Date "2020.05.19"]
[Round "6"]
[White "guillembaches"]
[Black "CMS13"]
[Result "1-0"]
[WhiteElo "2408"]
[BlackElo "2191"]
[TimeControl "180+1"]
[EndTime "13:08:20 PDT"]
[Termination "guillembaches won by resignation"]

1. e4 {[%clk 0:03:00.9]} 1... e5 {[%clk 0:02:59.7]} 2. Nf3 {[%clk 0:03:01.2]}
2... Nc6 {[%clk 0:02:59.3]} 3. Nc3 {[%clk 0:03:01.7]} 3... Nf6 {[%clk
0:02:58.7]} 4. d4 {[%clk 0:03:02]} 4... exd4 {[%clk 0:02:58.6]} 5. Nxd4 {[%clk
0:03:02.4]} 5... Bc5 {[%clk 0:02:58.7]} 6. Be3 {[%clk 0:03:01.4]} 6... Bb6
{[%clk 0:02:57.9]} 7. Qd2 {[%clk 0:03:01.4]} 7... d6 {[%clk 0:02:55.6]} 8. O-O-O
{[%clk 0:02:58.9]} 8... O-O {[%clk 0:02:54.8]} 9. f3 {[%clk 0:02:57.9]} 9... h6
{[%clk 0:02:51.2]} 10. g4 {[%clk 0:02:57.2]} 10... Nd7 {[%clk 0:02:37.3]} 11. g5
{[%clk 0:02:48.1]} 11... h5 {[%clk 0:02:36.6]} 12. g6 {[%clk 0:02:44.4]} 12...
fxg6 {[%clk 0:02:32.4]} 13. Ne6 {[%clk 0:02:28.2]} 13... Qf6 {[%clk 0:01:52.8]}
14. Nxf8 {[%clk 0:02:25.8]} 14... Nxf8 {[%clk 0:01:52.5]} 15. f4 {[%clk
0:02:13.4]} 15... Be6 {[%clk 0:01:48.6]} 16. Nd5 {[%clk 0:02:10.6]} 16... Bxd5
{[%clk 0:01:48.2]} 17. Qxd5+ {[%clk 0:02:01.9]} 17... Kh7 {[%clk 0:01:47.7]} 18.
Bxb6 {[%clk 0:02:01.9]} 18... axb6 {[%clk 0:01:47.6]} 19. f5 {[%clk 0:01:45.6]}
19... Nb4 {[%clk 0:01:31.8]} 20. fxg6+ {[%clk 0:01:43.7]} 20... Qxg6 {[%clk
0:01:25.3]} 21. Qf5 {[%clk 0:01:31.5]} 21... Nxa2+ {[%clk 0:01:23.1]} 22. Kb1
{[%clk 0:01:31]} 22... Nb4 {[%clk 0:01:21.8]} 23. Rg1 {[%clk 0:01:21.8]} 23...
Qxf5 {[%clk 0:01:20.9]} 24. exf5 {[%clk 0:01:22.7]} 24... Nd7 {[%clk 0:01:20.2]}
25. Re1 {[%clk 0:01:10.7]} 25... Ne5 {[%clk 0:01:19.3]} 26. Be2 {[%clk
0:01:04.6]} 26... h4 {[%clk 0:01:17.3]} 27. Rg5 {[%clk 0:00:58.8]} 27... Kg8
{[%clk 0:01:09.2]} 28. Reg1 {[%clk 0:00:55.7]} 28... g6 {[%clk 0:01:06]} 29.
fxg6 {[%clk 0:00:52.1]} 29... Rf8 {[%clk 0:01:04.5]} 30. g7 {[%clk 0:00:44.5]}
30... Rf2 {[%clk 0:01:03.1]} 31. Bg4 {[%clk 0:00:31.4]} 31... Nxg4 {[%clk
0:00:35.3]} 32. R5xg4 {[%clk 0:00:30.3]} 32... Nxc2 {[%clk 0:00:34.8]} 33. Rxh4
{[%clk 0:00:28.4]} 1-0

[Event "*** Titled Tuesday Blitz"]
[Site "Chess.com"]
[Date "2020.05.19"]
[Round "6"]
[White "SaySpade4VIP"]
[Black "VojtechPlat"]
[Result "0-1"]
[WhiteElo "2692"]
[BlackElo "2897"]
[TimeControl "180+1"]
[EndTime "13:08:21 PDT"]
[Termination "VojtechPlat won by resignation"]

1. d4 {[%clk 0:03:00.9]} 1... d5 {[%clk 0:02:59.5]} 2. Bf4 {[%clk 0:03:01]} 2...
Nc6 {[%clk 0:02:59.3]} 3. e3 {[%clk 0:02:59.2]} 3... g6 {[%clk 0:02:59.3]} 4. h4
{[%clk 0:02:51.1]} 4... Bg7 {[%clk 0:02:57.9]} 5. h5 {[%clk 0:02:48.7]} 5... e5
{[%clk 0:02:54.3]} 6. dxe5 {[%clk 0:02:49.6]} 6... Nxe5 {[%clk 0:02:54]} 7. Nc3
{[%clk 0:02:14.5]} 7... c6 {[%clk 0:02:53.4]} 8. Nf3 {[%clk 0:02:15]} 8... Nxf3+
{[%clk 0:02:49.8]} 9. Qxf3 {[%clk 0:02:11.6]} 9... Ne7 {[%clk 0:02:45.6]} 10.
hxg6 {[%clk 0:01:43.8]} 10... Nxg6 {[%clk 0:02:41.1]} 11. Bd3 {[%clk 0:01:34.3]}
11... Be6 {[%clk 0:02:36.5]} 12. Ne2 {[%clk 0:01:27.5]} 12... Qb6 {[%clk
0:02:27.8]} 13. O-O {[%clk 0:01:07.3]} 13... O-O {[%clk 0:02:20.1]} 14. Ng3
{[%clk 0:00:56.9]} 14... Nxf4 {[%clk 0:01:57.3]} 15. exf4 {[%clk 0:00:47.3]}
15... f5 {[%clk 0:01:56.7]} 16. Rae1 {[%clk 0:00:38.6]} 16... Rae8 {[%clk
0:01:50.6]} 17. Qh5 {[%clk 0:00:35.8]} 17... Bf7 {[%clk 0:01:40.1]} 18. Qxf5
{[%clk 0:00:29.9]} 18... Bg6 {[%clk 0:01:39.8]} 19. Qd7 {[%clk 0:00:25.6]} 19...
Rxe1 {[%clk 0:01:39.4]} 20. Rxe1 {[%clk 0:00:24.3]} 20... Rxf4 {[%clk
0:01:32.9]} 21. Re8+ {[%clk 0:00:13.3]} 21... Bxe8 {[%clk 0:01:27.8]} 22. Qxe8+
{[%clk 0:00:14.2]} 22... Rf8 {[%clk 0:01:27.5]} 23. Qh5 {[%clk 0:00:08.6]} 23...
Qxf2+ {[%clk 0:01:24.3]} 24. Kh2 {[%clk 0:00:08.6]} 24... Rf6 {[%clk 0:01:18.1]}
25. Qxh7+ {[%clk 0:00:07.1]} 25... Kf8 {[%clk 0:01:14.3]} 26. Nh5 {[%clk
0:00:07.6]} 26... Qh4+ {[%clk 0:01:10.4]} 27. Kg1 {[%clk 0:00:07.7]} 27... Rf7
{[%clk 0:01:06.2]} 28. Nxg7 {[%clk 0:00:05]} 28... Qxh7 {[%clk 0:01:03.6]} 29.
Ne6+ {[%clk 0:00:05.2]} 29... Ke7 {[%clk 0:01:02.2]} 30. Bxh7 {[%clk 0:00:04.7]}
30... Rxh7 {[%clk 0:01:02.3]} 31. Nc5 {[%clk 0:00:04.4]} 31... Kd6 {[%clk
0:01:01.4]} 32. Nd3 {[%clk 0:00:04.8]} 32... Rf7 {[%clk 0:01:00.6]} 33. g3
{[%clk 0:00:04.2]} 33... c5 {[%clk 0:01:00.3]} 34. Kg2 {[%clk 0:00:05.1]} 34...
c4 {[%clk 0:01:00.5]} 35. Nf4 {[%clk 0:00:06]} 35... d4 {[%clk 0:01:00.7]} 36.
Kf3 {[%clk 0:00:05.8]} 36... Ke5 {[%clk 0:01:00.9]} 37. g4 {[%clk 0:00:05.4]}
37... Rxf4+ {[%clk 0:01:00.5]} 0-1

[Event "*** Titled Tuesday Blitz"]
[Site "Chess.com"]
[Date "2020.05.19"]
[Round "6"]
[White "jcgs1030"]
[Black "Gandrade2"]
[Result "0-1"]
[WhiteElo "2389"]
[BlackElo "2047"]
[TimeControl "180+1"]
[EndTime "13:08:25 PDT"]
[Termination "Gandrade2 won by resignation"]

1. e4 {[%clk 0:01:32.9]} 1... c6 {[%clk 0:02:58.8]} 2. d4 {[%clk 0:01:30.1]}
2... d5 {[%clk 0:02:59]} 3. e5 {[%clk 0:01:29]} 3... c5 {[%clk 0:02:58.6]} 4.
dxc5 {[%clk 0:01:28.4]} 4... e6 {[%clk 0:02:57.9]} 5. a3 {[%clk 0:01:29.3]} 5...
Bxc5 {[%clk 0:02:55.8]} 6. b4 {[%clk 0:01:29]} 6... Bb6 {[%clk 0:02:54.2]} 7.
Nf3 {[%clk 0:01:26.7]} 7... Ne7 {[%clk 0:02:50.3]} 8. Bb2 {[%clk 0:01:25.4]}
8... Ng6 {[%clk 0:02:49.4]} 9. Bd3 {[%clk 0:01:23.4]} 9... Nc6 {[%clk
0:02:48.5]} 10. O-O {[%clk 0:01:22.8]} 10... O-O {[%clk 0:02:44.7]} 11. Nbd2
{[%clk 0:01:20.6]} 11... Nf4 {[%clk 0:02:39.3]} 12. g3 {[%clk 0:01:11.5]} 12...
Nxd3 {[%clk 0:02:39.3]} 13. cxd3 {[%clk 0:01:12.4]} 13... f6 {[%clk 0:02:29.5]}
14. exf6 {[%clk 0:01:07.2]} 14... gxf6 {[%clk 0:02:30.4]} 15. d4 {[%clk
0:01:04.7]} 15... Qe8 {[%clk 0:02:24.6]} 16. Kg2 {[%clk 0:01:02.4]} 16... Bd7
{[%clk 0:02:19.7]} 17. Nb3 {[%clk 0:01:01.4]} 17... Bc7 {[%clk 0:02:13.4]} 18.
Nc5 {[%clk 0:00:56.5]} 18... b6 {[%clk 0:02:10.4]} 19. Nd3 {[%clk 0:00:54.8]}
19... Qg6 {[%clk 0:01:55.5]} 20. Rc1 {[%clk 0:00:50.5]} 20... Bd6 {[%clk
0:01:47.7]} 21. Nh4 {[%clk 0:00:43]} 21... Qe4+ {[%clk 0:01:39.8]} 22. f3 {[%clk
0:00:42.5]} 22... Qe3 {[%clk 0:01:35.3]} 23. Re1 {[%clk 0:00:40.1]} 23... Qh6
{[%clk 0:01:33.2]} 24. f4 {[%clk 0:00:38.2]} 24... Rae8 {[%clk 0:01:30.3]} 25.
Nf2 {[%clk 0:00:32.8]} 25... Bxf4 {[%clk 0:01:24.6]} 26. Ng4 {[%clk 0:00:30.3]}
26... Qg5 {[%clk 0:01:21.8]} 27. Rc3 {[%clk 0:00:20.1]} 27... Bd6 {[%clk
0:01:15]} 28. Rf3 {[%clk 0:00:15.2]} 28... Kh8 {[%clk 0:01:10.4]} 29. Rfe3
{[%clk 0:00:13.9]} 29... e5 {[%clk 0:01:03.5]} 30. dxe5 {[%clk 0:00:14.8]} 30...
Bxg4 {[%clk 0:01:00.9]} 31. Qxd5 {[%clk 0:00:15.3]} 31... Bxe5 {[%clk
0:00:53.9]} 32. Qxc6 {[%clk 0:00:13.3]} 32... Rc8 {[%clk 0:00:54]} 0-1

[Event "*** Titled Tuesday Blitz"]
[Site "Chess.com"]
[Date "2020.05.19"]
[Round "6"]
[White "GHANDEEVAM2003"]
[Black "rogapa"]
[Result "1-0"]
[WhiteElo "2910"]
[BlackElo "2692"]
[TimeControl "180+1"]
[EndTime "13:08:26 PDT"]
[Termination "GHANDEEVAM2003 won by checkmate"]

1. d4 {[%clk 0:03:00.9]} 1... Nf6 {[%clk 0:02:59.7]} 2. c4 {[%clk 0:03:01.1]}
2... g6 {[%clk 0:02:59.3]} 3. Nc3 {[%clk 0:03:01]} 3... Bg7 {[%clk 0:02:59.6]}
4. e4 {[%clk 0:03:01.2]} 4... O-O {[%clk 0:03:00.5]} 5. Be2 {[%clk 0:03:01.7]}
5... d6 {[%clk 0:03:00.6]} 6. Bg5 {[%clk 0:03:02.3]} 6... c6 {[%clk 0:02:54.3]}
7. f4 {[%clk 0:03:00.7]} 7... Na6 {[%clk 0:02:52.1]} 8. Qd2 {[%clk 0:02:56.1]}
8... Nc7 {[%clk 0:02:51.8]} 9. Bf3 {[%clk 0:02:56.1]} 9... Ne6 {[%clk
0:02:51.3]} 10. Bh4 {[%clk 0:02:51.1]} 10... c5 {[%clk 0:02:38.2]} 11. dxc5
{[%clk 0:02:51.3]} 11... dxc5 {[%clk 0:02:36.3]} 12. Qxd8 {[%clk 0:02:42.5]}
12... Rxd8 {[%clk 0:02:37.2]} 13. e5 {[%clk 0:02:43.2]} 13... Nh5 {[%clk
0:02:25.7]} 14. Bxh5 {[%clk 0:02:37.3]} 14... gxh5 {[%clk 0:02:24.2]} 15. Nge2
{[%clk 0:02:31.1]} 15... f6 {[%clk 0:02:12.6]} 16. Nd5 {[%clk 0:02:27.2]} 16...
Kf7 {[%clk 0:02:11.5]} 17. f5 {[%clk 0:02:22.8]} 17... Nd4 {[%clk 0:02:02.7]}
18. e6+ {[%clk 0:02:22.5]} 18... Kf8 {[%clk 0:01:59.2]} 19. Nxd4 {[%clk
0:02:14.7]} 19... cxd4 {[%clk 0:02:00.1]} 20. O-O-O {[%clk 0:01:52.9]} 20... b5
{[%clk 0:01:59.1]} 21. Rxd4 {[%clk 0:01:39.8]} 21... bxc4 {[%clk 0:01:54.7]} 22.
Rhd1 {[%clk 0:01:39]} 22... Bb7 {[%clk 0:01:46.8]} 23. Kc2 {[%clk 0:01:37.4]}
23... Rac8 {[%clk 0:01:38.1]} 24. Kc3 {[%clk 0:01:14.1]} 24... Bh6 {[%clk
0:00:55.8]} 25. Nxe7 {[%clk 0:00:55]} 25... Rxd4 {[%clk 0:00:35.4]} 26. Rxd4
{[%clk 0:00:55.9]} 26... Rc5 {[%clk 0:00:23.3]} 27. Bxf6 {[%clk 0:00:51.2]}
27... Ke8 {[%clk 0:00:13.7]} 28. Nc6 {[%clk 0:00:47.2]} 28... Rxc6 {[%clk
0:00:05.4]} 29. Rd8# {[%clk 0:00:47.4]} 1-0

[Event "*** Titled Tuesday Blitz"]
[Site "Chess.com"]
[Date "2020.05.19"]
[Round "6"]
[White "GregShahade"]
[Black "Supernotar"]
[Result "1/2-1/2"]
[WhiteElo "2511"]
[BlackElo "2667"]
[TimeControl "180+1"]
[EndTime "13:08:27 PDT"]
[Termination "Game drawn by repetition"]

1. e4 {[%clk 0:02:17.1]} 1... c6 {[%clk 0:03:00.2]} 2. Nc3 {[%clk 0:02:15.7]}
2... d5 {[%clk 0:03:00.4]} 3. Nf3 {[%clk 0:02:15.9]} 3... Bg4 {[%clk 0:03:00.5]}
4. h3 {[%clk 0:02:15.5]} 4... Bxf3 {[%clk 0:03:00.9]} 5. Qxf3 {[%clk 0:02:16.4]}
5... e6 {[%clk 0:03:01]} 6. Be2 {[%clk 0:02:15.9]} 6... Nf6 {[%clk 0:03:01.1]}
7. O-O {[%clk 0:02:16.2]} 7... dxe4 {[%clk 0:03:01.4]} 8. Nxe4 {[%clk
0:02:15.9]} 8... Nxe4 {[%clk 0:03:01.6]} 9. Qxe4 {[%clk 0:02:16.8]} 9... Nd7
{[%clk 0:03:01.8]} 10. c3 {[%clk 0:02:13.4]} 10... Nf6 {[%clk 0:03:02]} 11. Qf3
{[%clk 0:02:12.9]} 11... Be7 {[%clk 0:03:02.3]} 12. d4 {[%clk 0:02:13.1]} 12...
O-O {[%clk 0:03:02.3]} 13. Re1 {[%clk 0:02:12.1]} 13... a5 {[%clk 0:03:01.8]}
14. Bd3 {[%clk 0:02:12.1]} 14... Qb6 {[%clk 0:02:57.9]} 15. Qe2 {[%clk
0:02:08.4]} 15... Rfd8 {[%clk 0:02:54.7]} 16. Bf4 {[%clk 0:02:07.7]} 16... Rd7
{[%clk 0:02:51.9]} 17. Rad1 {[%clk 0:02:07.1]} 17... Rad8 {[%clk 0:02:50.9]} 18.
Bb1 {[%clk 0:02:07.2]} 18... Nd5 {[%clk 0:02:48.4]} 19. Be5 {[%clk 0:02:06.9]}
19... Bf8 {[%clk 0:02:43.3]} 20. h4 {[%clk 0:02:02.6]} 20... g6 {[%clk
0:02:42.5]} 21. h5 {[%clk 0:02:02.5]} 21... Bg7 {[%clk 0:02:38.7]} 22. Bxg7
{[%clk 0:02:00.7]} 22... Kxg7 {[%clk 0:02:38.8]} 23. Rd2 {[%clk 0:01:57.8]}
23... Qc7 {[%clk 0:02:35.8]} 24. Qf3 {[%clk 0:01:55.2]} 24... Qf4 {[%clk
0:02:34.1]} 25. Qxf4 {[%clk 0:01:54]} 25... Nxf4 {[%clk 0:02:34.2]} 26. hxg6
{[%clk 0:01:54.6]} 26... hxg6 {[%clk 0:02:34.7]} 27. g3 {[%clk 0:01:51.9]} 27...
Nd5 {[%clk 0:02:33.2]} 28. Rde2 {[%clk 0:01:48.5]} 28... Rh8 {[%clk 0:02:26.5]}
29. Kg2 {[%clk 0:01:48.3]} 29... Kf6 {[%clk 0:02:24.9]} 30. Bc2 {[%clk
0:01:36.7]} 30... b5 {[%clk 0:02:21]} 31. Re5 {[%clk 0:01:24.4]} 31... Rdd8
{[%clk 0:02:17.4]} 32. Rh1 {[%clk 0:01:23.3]} 32... Rxh1 {[%clk 0:02:16.4]} 33.
Kxh1 {[%clk 0:01:24.2]} 33... Rh8+ {[%clk 0:02:15.5]} 34. Kg2 {[%clk 0:01:24]}
34... a4 {[%clk 0:02:15.6]} 35. c4 {[%clk 0:01:11]} 35... bxc4 {[%clk
0:01:55.4]} 36. Bxa4 {[%clk 0:01:11.2]} 36... Ra8 {[%clk 0:01:54.1]} 37. Bxc6
{[%clk 0:01:05.1]} 37... Rxa2 {[%clk 0:01:53.7]} 38. Bxd5 {[%clk 0:00:57.8]}
38... exd5 {[%clk 0:01:53.8]} 39. Rxd5 {[%clk 0:00:58.3]} 39... Rxb2 {[%clk
0:01:54.1]} 40. Rc5 {[%clk 0:00:58.8]} 40... Rc2 {[%clk 0:01:53.5]} 41. Kf3
{[%clk 0:00:58.2]} 41... Ke6 {[%clk 0:01:49.5]} 42. Ke3 {[%clk 0:00:58.3]} 42...
Kd6 {[%clk 0:01:45.4]} 43. g4 {[%clk 0:00:54.9]} 43... f6 {[%clk 0:01:41.8]} 44.
f3 {[%clk 0:00:52.3]} 44... Rc3+ {[%clk 0:01:35.6]} 45. Ke4 {[%clk 0:00:50.6]}
45... Rc1 {[%clk 0:01:34]} 46. Ke3 {[%clk 0:00:45.1]} 46... Rc3+ {[%clk
0:01:26.9]} 47. Ke4 {[%clk 0:00:45.4]} 47... Rc1 {[%clk 0:01:23.3]} 48. Ke3
{[%clk 0:00:44.6]} 48... c3 {[%clk 0:01:09.5]} 49. Kd3 {[%clk 0:00:40.9]} 49...
Rf1 {[%clk 0:01:08.2]} 50. Ke2 {[%clk 0:00:37.3]} 50... Rc1 {[%clk 0:01:05.4]}
51. Kd3 {[%clk 0:00:37.6]} 51... Rf1 {[%clk 0:01:03]} 52. Ke2 {[%clk 0:00:37.5]}
52... Rc1 {[%clk 0:01:01.4]} 53. Kd3 {[%clk 0:00:33]} 1/2-1/2

[Event "*** Titled Tuesday Blitz"]
[Site "Chess.com"]
[Date "2020.05.19"]
[Round "6"]
[White "Doukis"]
[Black "stolencandy13"]
[Result "0-1"]
[WhiteElo "2378"]
[BlackElo "2560"]
[TimeControl "180+1"]
[EndTime "13:08:30 PDT"]
[Termination "stolencandy13 won on time"]

1. d4 {[%clk 0:03:00.9]} 1... f5 {[%clk 0:02:58.6]} 2. c4 {[%clk 0:03:00.5]}
2... e6 {[%clk 0:02:55.2]} 3. Nc3 {[%clk 0:02:55.3]} 3... Nf6 {[%clk 0:02:54.5]}
4. h4 {[%clk 0:02:54.2]} 4... d5 {[%clk 0:02:45.3]} 5. h5 {[%clk 0:02:52.2]}
5... dxc4 {[%clk 0:02:40.2]} 6. h6 {[%clk 0:02:52.2]} 6... c6 {[%clk 0:02:35.7]}
7. Nf3 {[%clk 0:02:49.9]} 7... b5 {[%clk 0:02:32.9]} 8. e4 {[%clk 0:02:15.5]}
8... fxe4 {[%clk 0:02:22.9]} 9. Ne5 {[%clk 0:02:14.2]} 9... g6 {[%clk
0:02:20.5]} 10. Bg5 {[%clk 0:02:11.1]} 10... Bb4 {[%clk 0:02:17.2]} 11. Be2
{[%clk 0:01:48.3]} 11... Nbd7 {[%clk 0:02:01.3]} 12. O-O {[%clk 0:01:39.8]}
12... Bxc3 {[%clk 0:01:54.6]} 13. Nxd7 {[%clk 0:01:30]} 13... Qxd7 {[%clk
0:01:52.1]} 14. bxc3 {[%clk 0:01:30.5]} 14... O-O {[%clk 0:01:48.5]} 15. f3
{[%clk 0:01:25.8]} 15... Nd5 {[%clk 0:01:44.6]} 16. Qd2 {[%clk 0:01:11.8]} 16...
exf3 {[%clk 0:01:36.4]} 17. Rxf3 {[%clk 0:01:08.6]} 17... Bb7 {[%clk 0:01:31.6]}
18. Raf1 {[%clk 0:01:06.5]} 18... Rxf3 {[%clk 0:01:27.7]} 19. Bxf3 {[%clk
0:01:06.2]} 19... Rf8 {[%clk 0:01:21.6]} 20. Re1 {[%clk 0:01:00.9]} 20... Qd6
{[%clk 0:01:19.5]} 21. Bg4 {[%clk 0:00:58]} 21... Bc8 {[%clk 0:01:17.2]} 22. Re5
{[%clk 0:00:53.8]} 22... a5 {[%clk 0:01:12.6]} 23. Qe1 {[%clk 0:00:48]} 23... b4
{[%clk 0:01:10.8]} 24. Bxe6+ {[%clk 0:00:44.1]} 24... Bxe6 {[%clk 0:01:10.7]}
25. Rxe6 {[%clk 0:00:45]} 25... Qd7 {[%clk 0:01:11.2]} 26. Qe5 {[%clk
0:00:32.8]} 26... Qf7 {[%clk 0:01:05.3]} 27. Rxc6 {[%clk 0:00:20.5]} 27... Re8
{[%clk 0:01:02.2]} 28. Qd6 {[%clk 0:00:11.1]} 28... b3 {[%clk 0:00:54.4]} 29.
axb3 {[%clk 0:00:09.5]} 29... cxb3 {[%clk 0:00:55.3]} 30. Rc5 {[%clk 0:00:04.1]}
30... b2 {[%clk 0:00:52.3]} 31. Rb5 {[%clk 0:00:04.7]} 31... Nb4 {[%clk
0:00:52.5]} 32. Kh2 {[%clk 0:00:03.4]} 32... b1=Q {[%clk 0:00:51.7]} 33. cxb4
{[%clk 0:00:02.9]} 33... Qd3 {[%clk 0:00:48.1]} 0-1

[Event "*** Titled Tuesday Blitz"]
[Site "Chess.com"]
[Date "2020.05.19"]
[Round "6"]
[White "FMalexhdez"]
[Black "lelya96"]
[Result "0-1"]
[WhiteElo "2056"]
[BlackElo "2260"]
[TimeControl "180+1"]
[EndTime "13:08:30 PDT"]
[Termination "lelya96 won by resignation"]

1. e4 {[%clk 0:02:52.3]} 1... e5 {[%clk 0:02:59.2]} 2. Nf3 {[%clk 0:02:51.8]}
2... Nc6 {[%clk 0:02:58.7]} 3. Bc4 {[%clk 0:02:52.1]} 3... Nf6 {[%clk
0:02:58.2]} 4. d3 {[%clk 0:02:51.3]} 4... Be7 {[%clk 0:02:49.1]} 5. O-O {[%clk
0:02:50.9]} 5... O-O {[%clk 0:02:47]} 6. c3 {[%clk 0:02:51.1]} 6... h6 {[%clk
0:02:46.8]} 7. Nbd2 {[%clk 0:02:50.5]} 7... d6 {[%clk 0:02:46.8]} 8. Re1 {[%clk
0:02:47.8]} 8... Kh8 {[%clk 0:02:46]} 9. Nf1 {[%clk 0:02:44.7]} 9... Nh7 {[%clk
0:02:44.5]} 10. d4 {[%clk 0:02:42.9]} 10... Ng5 {[%clk 0:02:40.9]} 11. d5 {[%clk
0:02:23.3]} 11... Nb8 {[%clk 0:02:38.5]} 12. Ng3 {[%clk 0:02:08.1]} 12... Bg4
{[%clk 0:02:33.1]} 13. Be2 {[%clk 0:02:07.7]} 13... Nxf3+ {[%clk 0:02:32]} 14.
Bxf3 {[%clk 0:02:07.5]} 14... Bxf3 {[%clk 0:02:32.2]} 15. Qxf3 {[%clk
0:02:06.9]} 15... Bf6 {[%clk 0:02:32.3]} 16. Nf5 {[%clk 0:02:04.1]} 16... Nd7
{[%clk 0:02:31.7]} 17. Qh5 {[%clk 0:01:35.1]} 17... Bg5 {[%clk 0:02:22.7]} 18.
Bxg5 {[%clk 0:01:32.1]} 18... Qxg5 {[%clk 0:02:22]} 19. Qxg5 {[%clk 0:01:31.7]}
19... hxg5 {[%clk 0:02:22.2]} 20. c4 {[%clk 0:01:28]} 20... g6 {[%clk
0:02:21.3]} 21. Ne3 {[%clk 0:01:27.1]} 21... Kg7 {[%clk 0:02:21.3]} 22. f3
{[%clk 0:01:25.6]} 22... a5 {[%clk 0:02:20.3]} 23. g4 {[%clk 0:01:24.7]} 23...
Nc5 {[%clk 0:02:17.5]} 24. Re2 {[%clk 0:01:18.9]} 24... Rh8 {[%clk 0:02:14.6]}
25. Kg2 {[%clk 0:01:14.1]} 25... Nd3 {[%clk 0:02:12]} 26. Rd2 {[%clk 0:01:08.5]}
26... Nf4+ {[%clk 0:02:08.3]} 27. Kg1 {[%clk 0:01:05.4]} 27... Rh3 {[%clk
0:02:05.5]} 28. Rf1 {[%clk 0:01:01.2]} 28... Kf6 {[%clk 0:01:53.7]} 29. Ng2
{[%clk 0:00:59.6]} 29... Rah8 {[%clk 0:01:34.5]} 30. Nxf4 {[%clk 0:00:59.1]}
30... gxf4 {[%clk 0:01:34.7]} 31. Rff2 {[%clk 0:00:55.5]} 31... Kg5 {[%clk
0:01:33.6]} 32. Kf1 {[%clk 0:00:49.3]} 32... f5 {[%clk 0:01:32.8]} 33. exf5
{[%clk 0:00:47.6]} 33... gxf5 {[%clk 0:01:32.9]} 34. gxf5 {[%clk 0:00:45.5]}
34... Kxf5 {[%clk 0:01:33.2]} 35. Rde2 {[%clk 0:00:45.1]} 35... b6 {[%clk
0:01:28.1]} 36. Ke1 {[%clk 0:00:39.9]} 36... Rg8 {[%clk 0:01:23.7]} 37. Kf1
{[%clk 0:00:38.2]} 37... Re8 {[%clk 0:01:14.8]} 38. Re4 {[%clk 0:00:34.4]} 38...
Rxf3 {[%clk 0:01:11.8]} 39. Rxe5+ {[%clk 0:00:32.3]} 39... dxe5 {[%clk
0:01:10.6]} 40. Rxf3 {[%clk 0:00:32.2]} 40... e4 {[%clk 0:01:11.1]} 41. Rh3
{[%clk 0:00:27.8]} 41... e3 {[%clk 0:01:10.1]} 42. Rh7 {[%clk 0:00:24]} 42... f3
{[%clk 0:01:07.5]} 43. Rf7+ {[%clk 0:00:17.7]} 43... Ke4 {[%clk 0:01:07]} 0-1

[Event "*** Titled Tuesday Blitz"]
[Site "Chess.com"]
[Date "2020.05.19"]
[Round "6"]
[White "fabianvivasz"]
[Black "DivyaDeshmukh23"]
[Result "0-1"]
[WhiteElo "2323"]
[BlackElo "2469"]
[TimeControl "180+1"]
[EndTime "13:08:32 PDT"]
[Termination "DivyaDeshmukh23 won on time"]

1. e4 {[%clk 0:03:00.9]} 1... c5 {[%clk 0:02:58.9]} 2. Nf3 {[%clk 0:03:00.5]}
2... d6 {[%clk 0:02:59.2]} 3. d4 {[%clk 0:02:58.9]} 3... cxd4 {[%clk 0:03:00.1]}
4. Nxd4 {[%clk 0:02:59]} 4... Nf6 {[%clk 0:03:01]} 5. Nc3 {[%clk 0:02:58.2]}
5... Nc6 {[%clk 0:03:01.5]} 6. Bg5 {[%clk 0:02:57.8]} 6... e6 {[%clk 0:03:01]}
7. Qd2 {[%clk 0:02:54.6]} 7... a6 {[%clk 0:03:01.3]} 8. Nxc6 {[%clk 0:02:52.8]}
8... bxc6 {[%clk 0:03:00.2]} 9. O-O-O {[%clk 0:02:53.4]} 9... Be7 {[%clk
0:02:59.5]} 10. Bc4 {[%clk 0:02:49.8]} 10... Bb7 {[%clk 0:02:55.8]} 11. Qe3
{[%clk 0:02:37.1]} 11... Ng4 {[%clk 0:02:35.2]} 12. Bxe7 {[%clk 0:02:34.7]}
12... Nxe3 {[%clk 0:02:34.9]} 13. Bxd8 {[%clk 0:02:34.3]} 13... Nxd1 {[%clk
0:02:35.4]} 14. Bb6 {[%clk 0:02:08.1]} 14... Nxc3 {[%clk 0:02:33.4]} 15. bxc3
{[%clk 0:02:08]} 15... O-O {[%clk 0:02:32.9]} 16. Rd1 {[%clk 0:02:05.7]} 16...
d5 {[%clk 0:02:30.7]} 17. Bd3 {[%clk 0:02:01.2]} 17... a5 {[%clk 0:02:26]} 18.
c4 {[%clk 0:01:59.3]} 18... Ba6 {[%clk 0:02:11.1]} 19. exd5 {[%clk 0:01:40.1]}
19... exd5 {[%clk 0:02:05.2]} 20. cxd5 {[%clk 0:01:41]} 20... cxd5 {[%clk
0:02:03.5]} 21. Bc5 {[%clk 0:01:04.7]} 21... Rfc8 {[%clk 0:01:55.7]} 22. Bd4
{[%clk 0:00:39.4]} 22... Bc4 {[%clk 0:01:43.8]} 23. a3 {[%clk 0:00:37.3]} 23...
Rab8 {[%clk 0:01:40.1]} 24. Kd2 {[%clk 0:00:35.4]} 24... Rb7 {[%clk 0:01:34.2]}
25. Re1 {[%clk 0:00:30.1]} 25... Bxd3 {[%clk 0:01:13.8]} 26. Kxd3 {[%clk
0:00:26.6]} 26... f6 {[%clk 0:01:12.5]} 27. Re6 {[%clk 0:00:22.3]} 27... Rb1
{[%clk 0:01:09.9]} 28. c3 {[%clk 0:00:14.3]} 28... Rb3 {[%clk 0:01:05.5]} 29. a4
{[%clk 0:00:13.4]} 29... Ra3 {[%clk 0:01:05.6]} 30. Rd6 {[%clk 0:00:12.3]} 30...
Rxa4 {[%clk 0:01:05]} 31. Rxd5 {[%clk 0:00:12.8]} 31... Ra1 {[%clk 0:01:05.2]}
32. g4 {[%clk 0:00:09.2]} 32... a4 {[%clk 0:01:05]} 33. g5 {[%clk 0:00:08.7]}
33... a3 {[%clk 0:01:01]} 34. gxf6 {[%clk 0:00:05.4]} 34... gxf6 {[%clk
0:01:00.3]} 35. Ra5 {[%clk 0:00:01.6]} 35... a2 {[%clk 0:00:59]} 36. Ke2 {[%clk
0:00:01.3]} 36... Rb8 {[%clk 0:00:56.6]} 0-1